fUST/lending_fUST_20260603
["ID","MTS","AMOUNT","RATE_DAILY","PERIOD"]
[423824375,1780439446000,-500.0,0.00014246,2]
[423824421,1780439446000,-342.65,0.0001452,2]
[423824361,1780439446000,-13272.94161489,0.00014004,2]
[423824371,1780439446000,-500.0,0.00014246,2]
[423824369,1780439446000,-159.68,0.00014246,2]
[423824385,1780439446000,-456.12,0.00014246,2]
[423824411,1780439446000,-500.0,0.00014246,2]
[423824367,1780439446000,-500.0,0.00014246,2]
[423824423,1780439446000,-500.0,0.0001452,2]
[423824417,1780439446000,-500.0,0.0001452,2]
[423824468,1780439446000,-235.4933989,0.000149,2]
[423824464,1780439446000,-202.96765934,0.00014886,7]
[423824466,1780439446000,-603.48445294,0.000149,2]
[423824460,1780439446000,-500.0,0.00014794,2]
[423824462,1780439446000,-669.23,0.00014794,2]
[423824470,1780439446000,-6204.69624936,0.00015,2]
[423824459,1780439446000,-688.42,0.00014794,2]
[423824455,1780439446000,-500.0,0.00014794,2]
[423824453,1780439446000,-500.0,0.00014794,2]
[423824451,1780439446000,-645.99,0.00014794,2]
[423824439,1780439446000,-500.0,0.0001452,2]
[423824445,1780439446000,-500.0,0.00014794,2]
[423824457,1780439446000,-500.0,0.00014794,2]
[423824437,1780439446000,-688.42,0.0001452,2]
[423824443,1780439446000,-726.60995436,0.00014735,2]
[423824447,1780439446000,-500.0,0.00014794,2]
[423824449,1780439446000,-500.0,0.00014794,2]
[423824425,1780439446000,-387.39332242,0.0001452,2]
[423824441,1780439446000,-669.23,0.0001452,2]
[423824433,1780439446000,-500.0,0.0001452,2]
[423824431,1780439446000,-500.0,0.0001452,2]
[423824429,1780439446000,-500.0,0.0001452,2]
[423824415,1780439446000,-202.96765933,0.00014354,7]
[423824413,1780439446000,-669.23,0.00014246,2]
[423824408,1780439446000,-688.42,0.00014246,2]
[423824435,1780439446000,-319.84,0.0001452,2]
[423825955,1780439529000,-1615.92222717,0.00013561,2]
[423826224,1780440553000,175.14,0.00021895,30]
[423826396,1780440632000,-1045.8101247,0.00012983,2]
[423826404,1780440632000,-433.45811007,0.00012983,2]
[423826418,1780440632000,-3520.73176523,0.00012983,2]
[423826431,1780440632000,-500.0,0.00013698,2]
[423826420,1780440632000,-168.740303,0.00013114,2]
[423826435,1780440632000,-310.08939762,0.00013698,2]
[423826422,1780440632000,-500.0,0.00013698,2]
[423826432,1780440632000,-189.91060238,0.00013698,2]
[423826424,1780440632000,-500.0,0.00013698,2]
[423826452,1780440632000,-500.0,0.00013969,2]
[423826429,1780440632000,-500.0,0.00013698,2]
[423826449,1780440632000,-500.0,0.00013969,2]
[423826443,1780440632000,-1219.89696094,0.0001387,2]
[423826462,1780440632000,-500.0,0.00013969,2]
[423826447,1780440632000,-289.72133913,0.00013969,2]
[423826456,1780440632000,-500.0,0.00013969,2]
[423826458,1780440632000,-500.0,0.00013969,2]
[423826450,1780440632000,-500.0,0.00013969,2]
[423826438,1780440632000,-500.0,0.00013698,2]
[423826441,1780440632000,-1000.0,0.00013699,2]
[423826454,1780440632000,-500.0,0.00013969,2]
[423826460,1780440632000,-500.0,0.00013969,2]
[423826508,1780440633000,-300.0,0.00013971,2]
[423826513,1780440633000,-300.0,0.00013971,2]
[423826506,1780440633000,-300.0,0.00013971,2]
[423826515,1780440633000,-300.0,0.00013971,2]
[423826509,1780440633000,-300.0,0.00013971,2]
[423826511,1780440633000,-300.0,0.00013971,2]
[423826519,1780440633000,-300.0,0.00013971,2]
[423826533,1780440633000,-500.0,0.00013972,2]
[423826521,1780440633000,-300.0,0.00013971,2]
[423826523,1780440633000,-300.0,0.00013971,2]
[423826525,1780440633000,-500.0,0.00013972,2]
[423826502,1780440633000,-300.0,0.00013971,2]
[423826535,1780440633000,-343.918,0.00013972,2]
[423826539,1780440633000,-500.0,0.00013972,2]
[423826527,1780440633000,-500.0,0.00013972,2]
[423826537,1780440633000,-520.32,0.00013972,2]
[423826518,1780440633000,-300.0,0.00013971,2]
[423826496,1780440633000,-300.0,0.00013971,2]
[423826487,1780440633000,-500.0,0.0001397,2]
[423826494,1780440633000,-511.41,0.0001397,2]
[423826541,1780440633000,-150.308,0.00013972,2]
[423826466,1780440633000,-500.0,0.00013969,2]
[423826464,1780440633000,-500.0,0.00013969,2]
[423826467,1780440633000,-500.0,0.0001397,2]
[423826471,1780440633000,-500.0,0.0001397,2]
[423826469,1780440633000,-500.0,0.0001397,2]
[423826483,1780440633000,-500.0,0.0001397,2]
[423826485,1780440633000,-2317.19,0.0001397,2]
[423826481,1780440633000,-500.0,0.0001397,2]
[423826473,1780440633000,-500.0,0.0001397,2]
[423826475,1780440633000,-500.0,0.0001397,2]
[423826479,1780440633000,-500.0,0.0001397,2]
[423826477,1780440633000,-366.89755947,0.0001397,2]
[423826489,1780440633000,-500.0,0.0001397,2]
[423826491,1780440633000,-500.0,0.0001397,2]
[423826492,1780440633000,-529.8,0.0001397,2]
[423826500,1780440633000,-300.0,0.00013971,2]
[423826498,1780440633000,-300.0,0.00013971,2]
[423826529,1780440633000,-500.0,0.00013972,2]
[423826504,1780440633000,-300.0,0.00013971,2]
[423826543,1780440633000,-730.57295249,0.00014026,2]
[423826595,1780440633000,-500.0,0.00014246,2]
[423826594,1780440633000,-500.0,0.00014246,2]
[423826588,1780440633000,-511.41,0.00014244,2]
[423826592,1780440633000,-500.0,0.00014246,2]
[423826608,1780440633000,-500.0,0.00014517,2]
[423826613,1780440633000,-78.74102221,0.00014517,2]
[423826599,1780440633000,-600.0,0.0001425,2]
[423826602,1780440633000,-500.0,0.00014375,2]
[423826611,1780440633000,-500.0,0.00014517,2]
[423826604,1780440633000,-162.380719,0.00014375,2]
[423826598,1780440633000,-500.0,0.00014246,2]
[423826610,1780440633000,-500.0,0.00014517,2]
[423826606,1780440633000,-537.6845,0.00014375,2]
[423826618,1780440633000,-500.0,0.00014518,2]
[423826616,1780440633000,-421.25897779,0.00014517,2]
[423826622,1780440633000,-500.0,0.00014518,2]
[423826624,1780440633000,-1063.22102221,0.00014518,2]
[423826586,1780440633000,-529.8,0.00014244,2]
[423826590,1780440633000,-385.99826452,0.00014246,2]
[423826620,1780440633000,-500.0,0.00014518,2]
[423826581,1780440633000,-500.0,0.00014244,2]
[423826545,1780440633000,-730.57295249,0.00014052,2]
[423826577,1780440633000,-500.0,0.00014244,2]
[423826547,1780440633000,-730.57295249,0.00014078,2]
[423826561,1780440633000,-500.0,0.00014243,2]
[423826563,1780440633000,-500.0,0.00014243,2]
[423826565,1780440633000,-500.0,0.00014244,2]
[423826555,1780440633000,-3494.298187,0.0001423,2]
[423826553,1780440633000,-4975.5690812,0.0001423,2]
[423826549,1780440633000,-730.57295249,0.00014104,2]
[423826559,1780440633000,-500.0,0.00014243,2]
[423826557,1780440633000,-500.0,0.00014243,2]
[423826571,1780440633000,-500.0,0.00014244,2]
[423826567,1780440633000,-161.32342463,0.00014244,2]
[423826569,1780440633000,-500.0,0.00014244,2]
[423826573,1780440633000,-500.0,0.00014244,2]
[423826575,1780440633000,-2317.19,0.00014244,2]
[423826531,1780440633000,-500.0,0.00013972,2]
[423826551,1780440633000,-730.57295249,0.0001413,2]
[423826579,1780440633000,-500.0,0.00014244,2]
[423827188,1780440638000,-500.0,0.00014792,2]
[423827204,1780440638000,-500.0,0.00014794,2]
[423827210,1780440638000,-364.03872251,0.00014923,2]
[423827218,1780440638000,-167.0,0.00015,2]
[423827214,1780440638000,-167.0,0.00015,2]
[423827208,1780440638000,-500.0,0.00014923,2]
[423827216,1780440638000,-167.0,0.00015,2]
[423827196,1780440638000,-229.24,0.00014792,2]
[423827206,1780440638000,-497.3,0.00014794,2]
[423827198,1780440638000,-529.8,0.00014792,2]
[423827202,1780440638000,-500.0,0.00014794,2]
[423827219,1780440638000,-167.94521165,0.00015,2]
[423827212,1780440638000,-1814.77317183,0.00015,2]
[423827194,1780440638000,-500.0,0.00014792,2]
[423827221,1780440638000,-459.32487604,0.00015052,2]
[423827200,1780440638000,-511.41,0.00014792,2]
[423827190,1780440638000,-2317.19,0.00014792,2]
[423827173,1780440638000,-500.0,0.0001452,2]
[423827192,1780440638000,-500.0,0.00014792,2]
[423827223,1780440638000,-500.0,0.00015065,2]
[423827161,1780440638000,-500.0,0.00014518,2]
[423827159,1780440638000,-500.0,0.00014518,2]
[423827157,1780440638000,-1253.96897779,0.00014518,2]
[423827163,1780440638000,-500.0,0.00014518,2]
[423827169,1780440638000,-500.0,0.0001452,2]
[423827165,1780440638000,-529.8,0.00014518,2]
[423827167,1780440638000,-511.41,0.00014518,2]
[423827171,1780440638000,-500.0,0.0001452,2]
[423827176,1780440638000,-500.0,0.00014791,2]
[423827174,1780440638000,-292.56,0.0001452,2]
[423827178,1780440638000,-500.0,0.00014791,2]
[423827180,1780440638000,-500.0,0.00014791,2]
[423827182,1780440638000,-500.0,0.00014791,2]
[423827186,1780440638000,-500.0,0.00014792,2]
[423827185,1780440638000,-500.0,0.00014792,2]
[423827225,1780440638000,-500.0,0.00015065,2]
[423827253,1780440638000,-2317.19,0.00015614,2]
[423827233,1780440638000,-500.0,0.00015066,2]
[423827246,1780440638000,-500.0,0.0001534,2]
[423827248,1780440638000,-529.8,0.0001534,2]
[423827243,1780440638000,-500.0,0.0001534,2]
[423827247,1780440638000,-500.0,0.0001534,2]
[423827254,1780440638000,-500.0,0.00015614,2]
[423827255,1780440638000,-500.0,0.00015614,2]
[423827256,1780440638000,-529.8,0.00015614,2]
[423827257,1780440638000,-511.41,0.00015614,2]
[423827263,1780440638000,-2317.19,0.00015888,2]
[423827258,1780440638000,-500.0,0.00015616,2]
[423827261,1780440638000,-2264.44793109,0.00015844,2]
[423827264,1780440638000,-500.0,0.00015888,2]
[423827260,1780440638000,-168.38880559,0.00015744,2]
[423827262,1780440638000,-500.0,0.00015888,2]
[423827232,1780440638000,-2317.19,0.00015066,2]
[423827245,1780440638000,-2317.19,0.0001534,2]
[423827242,1780440638000,-444.02474439,0.0001534,2]
[423827259,1780440638000,-720.0,0.00015675,2]
[423827244,1780440638000,-500.0,0.0001534,2]
[423827249,1780440638000,-511.41,0.0001534,2]
[423827235,1780440638000,-529.8,0.00015066,2]
[423827227,1780440638000,-500.0,0.00015065,2]
[423827231,1780440638000,-500.0,0.00015066,2]
[423827229,1780440638000,-500.0,0.00015066,2]
[423827236,1780440638000,-511.41,0.00015066,2]
[423827237,1780440638000,-500.0,0.00015068,2]
[423827234,1780440638000,-500.0,0.00015066,2]
[423827238,1780440638000,-194.05,0.00015068,2]
[423827240,1780440638000,-500.0,0.00015339,2]
[423827251,1780440638000,-300.0,0.00015342,2]
[423827250,1780440638000,-500.0,0.00015342,2]
[423827252,1780440638000,-500.0,0.00015614,2]
[423827239,1780440638000,-874.19389327,0.00015144,2]
[423827230,1780440638000,-500.0,0.00015066,2]
[423827241,1780440638000,-641.2,0.00015339,2]
[423827309,1780440639000,-511.41,0.00017258,2]
[423827313,1780440639000,-1836.0,0.00017501,2]
[423827312,1780440639000,-175.12362225,0.00017454,2]
[423827311,1780440639000,-302.78933209,0.00017449,2]
[423827301,1780440639000,-511.41,0.00016984,2]
[423827299,1780440639000,-500.0,0.00016984,2]
[423827297,1780440639000,-500.0,0.00016984,2]
[423827296,1780440639000,-571.88465592,0.00016795,2]
[423827314,1780440639000,-1415.0,0.00017501,2]
[423827294,1780440639000,-511.41,0.0001671,2]
[423827298,1780440639000,-2317.19,0.00016984,2]
[423827302,1780440639000,-500.0,0.00016986,2]
[423827318,1780440639000,-444.0,0.00017501,2]
[423827305,1780440639000,-2317.19,0.00017258,2]
[423827303,1780440639000,-864.0,0.00017243,2]
[423827307,1780440639000,-500.0,0.00017258,2]
[423827308,1780440639000,-529.8,0.00017258,2]
[423827304,1780440639000,-500.0,0.00017258,2]
[423827310,1780440639000,-500.0,0.0001726,2]
[423827316,1780440639000,-3630.0,0.00017501,2]
[423827322,1780440639000,-185.341,0.00017501,2]
[423827329,1780440639000,-500.0,0.00017532,2]
[423827320,1780440639000,-743.0,0.00017501,2]
[423827288,1780440639000,-692.96132693,0.00016678,2]
[423827300,1780440639000,-529.8,0.00016984,2]
[423827295,1780440639000,-500.0,0.00016712,2]
[423827271,1780440639000,-500.0,0.00016162,2]
[423827293,1780440639000,-529.8,0.0001671,2]
[423827265,1780440639000,-500.0,0.00015888,2]
[423827267,1780440639000,-511.41,0.00015888,2]
[423827268,1780440639000,-500.0,0.0001589,2]
[423827269,1780440639000,-3422.69900182,0.00015955,2]
[423827266,1780440639000,-529.8,0.00015888,2]
[423827270,1780440639000,-160.0,0.00015973,2]
[423827273,1780440639000,-386.29,0.00016162,2]
[423827272,1780440639000,-2317.19,0.00016162,2]
[423827274,1780440639000,-500.0,0.00016162,2]
[423827324,1780440639000,-500.0,0.00017532,2]
[423827286,1780440639000,-1219.8969609,0.00016589,2]
[423827276,1780440639000,-511.41,0.00016162,2]
[423827275,1780440639000,-529.8,0.00016162,2]
[423827277,1780440639000,-500.0,0.00016164,2]
[423827278,1780440639000,-500.0,0.00016436,2]
[423827285,1780440639000,-150.86,0.00016556,2]
[423827279,1780440639000,-2317.19,0.00016436,2]
[423827281,1780440639000,-529.8,0.00016436,2]
[423827280,1780440639000,-500.0,0.00016436,2]
[423827284,1780440639000,-500.0,0.00016438,2]
[423827282,1780440639000,-511.41,0.00016436,2]
[423827287,1780440639000,-151.39466604,0.00016645,2]
[423827290,1780440639000,-500.0,0.0001671,2]
[423827289,1780440639000,-355.94182844,0.00016678,2]
[423827292,1780440639000,-500.0,0.0001671,2]
[423827291,1780440639000,-2317.19,0.0001671,2]
[423827331,1780440639000,-529.8,0.00017532,2]
[423827283,1780440639000,-200.0,0.00016438,2]
[423827333,1780440639000,-511.41,0.00017532,2]
[423827390,1780440639000,-500.0,0.00018628,2]
[423827407,1780440639000,-500.0,0.00018902,2]
[423827399,1780440639000,-756.97333022,0.00018699,2]
[423827401,1780440639000,-650.0,0.00018705,2]
[423827404,1780440639000,-167.0,0.00018705,2]
[423827410,1780440639000,-500.0,0.00018902,2]
[423827408,1780440639000,-2317.19,0.00018902,2]
[423827412,1780440639000,-529.8,0.00018902,2]
[423827414,1780440639000,-511.41,0.00018902,2]
[423827416,1780440639000,-659.26,0.00018904,2]
[423827418,1780440639000,-1000.0,0.00018967,2]
[423827430,1780440639000,-300.0,0.00019178,2]
[423827434,1780440639000,-908.36799627,0.00019235,2]
[423827432,1780440639000,-659.26,0.00019178,2]
[423827425,1780440639000,-500.0,0.00019176,2]
[423827423,1780440639000,-2317.19,0.00019176,2]
[423827428,1780440639000,-511.41,0.00019176,2]
[423827436,1780440639000,-1219.8969609,0.00019307,2]
[423827420,1780440639000,-500.0,0.00019176,2]
[423827427,1780440639000,-529.8,0.00019176,2]
[423827438,1780440639000,-585.19522987,0.0001945,2]
[423827442,1780440639000,-410.22245701,0.0001945,2]
[423827440,1780440639000,-2317.19,0.0001945,2]
[423827446,1780440639000,-511.41,0.0001945,2]
[423827327,1780440639000,-2317.19,0.00017532,2]
[423827397,1780440639000,-659.26,0.0001863,2]
[423827395,1780440639000,-511.41,0.00018628,2]
[423827444,1780440639000,-529.8,0.0001945,2]
[423827378,1780440639000,-2317.19,0.00018354,2]
[423827392,1780440639000,-529.8,0.00018628,2]
[423827339,1780440639000,-2317.19,0.00017806,2]
[423827337,1780440639000,-500.0,0.00017806,2]
[423827341,1780440639000,-500.0,0.00017806,2]
[423827354,1780440639000,-372.19030665,0.00017922,2]
[423827352,1780440639000,-344.40505705,0.00017922,2]
[423827349,1780440639000,-428.45,0.00017808,2]
[423827356,1780440639000,-347.46138968,0.00017955,2]
[423827358,1780440639000,-454.18399813,0.00017985,2]
[423827342,1780440639000,-529.8,0.00017806,2]
[423827360,1780440639000,-350.2472445,0.0001799,2]
[423827362,1780440639000,-500.0,0.0001808,2]
[423827347,1780440639000,-511.41,0.00017806,2]
[423827366,1780440639000,-500.0,0.0001808,2]
[423827381,1780440639000,-529.8,0.00018354,2]
[423827387,1780440639000,-2317.19,0.00018628,2]
[423827380,1780440639000,-500.0,0.00018354,2]
[423827368,1780440639000,-529.8,0.0001808,2]
[423827376,1780440639000,-500.0,0.00018354,2]
[423827384,1780440639000,-511.41,0.00018354,2]
[423827386,1780440639000,-500.0,0.00018628,2]
[423827364,1780440639000,-2317.19,0.0001808,2]
[423827372,1780440639000,-605.57866418,0.00018342,2]
[423827374,1780440639000,-525.37086676,0.00018348,2]
[423827370,1780440639000,-511.41,0.0001808,2]
[423827335,1780440639000,-500.0,0.00017534,2]
[423827457,1780440640000,-529.8,0.00019724,2]
[423827454,1780440640000,-215.46321095,0.000196,2]
[423827452,1780440640000,-300.0,0.00019589,3]
[423827456,1780440640000,-2317.19,0.00019724,2]
[423827450,1780440640000,-659.26,0.00019452,2]
[423827459,1780440640000,-511.41,0.00019724,2]
[423827448,1780440640000,-425.75609063,0.00019452,2]
[423827461,1780440640000,-659.26,0.00019726,2]
[423827465,1780440640000,-529.8,0.00019998,2]
[423827468,1780440640000,-511.41,0.00019998,2]
[423827474,1780440640000,-419.62947041,0.0002,2]
[423827469,1780440640000,-233523.32661912,0.0002,2]
[423827471,1780440640000,-250753.9716758,0.0002,2]
[423827463,1780440640000,-2317.19,0.00019998,2]
[423828277,1780440646000,-1545.48754494,0.00015844,2]
[423828237,1780440646000,-1289.72133913,0.00015844,2]
[423830506,1780441832000,-300.0,0.00013226,2]
[423830514,1780441832000,-500.0,0.00013698,2]
[423830504,1780441832000,-300.0,0.00013226,2]
[423830515,1780441832000,-589.49,0.00013698,2]
[423830510,1780441832000,-300.0,0.00013226,2]
[423830456,1780441832000,-1071.458,0.00011527,2]
[423830523,1780441832000,-500.0,0.00013698,2]
[423830525,1780441832000,-500.0,0.00013698,2]
[423830519,1780441832000,-500.0,0.00013698,2]
[423830521,1780441832000,-500.0,0.00013698,2]
[423830508,1780441832000,-300.0,0.00013226,2]
[423830527,1780441832000,-500.0,0.00013698,2]
[423830529,1780441832000,-500.0,0.00013698,2]
[423830531,1780441832000,-500.0,0.00013698,2]
[423830539,1780441832000,-191.28855,0.00013863,2]
[423830511,1780441832000,-699.45280836,0.00013584,2]
[423830500,1780441832000,-300.0,0.00013226,2]
[423830486,1780441832000,-300.0,0.00013226,2]
[423830502,1780441832000,-300.0,0.00013226,2]
[423830454,1780441832000,-1237.30973074,0.00011527,2]
[423830472,1780441832000,-3875.9733393,0.00012474,2]
[423830474,1780441832000,-1200.0,0.00012641,2]
[423830470,1780441832000,-151.47,0.00012,2]
[423830540,1780441832000,-709.74,0.00013865,2]
[423830468,1780441832000,-2691.23226926,0.00011527,2]
[423830488,1780441832000,-300.0,0.00013226,2]
[423830498,1780441832000,-300.0,0.00013226,2]
[423830494,1780441832000,-300.0,0.00013226,2]
[423830490,1780441832000,-300.0,0.00013226,2]
[423830480,1780441832000,-300.0,0.00012966,2]
[423830476,1780441832000,-3003.2614135,0.00012642,2]
[423830492,1780441832000,-300.0,0.00013226,2]
[423830484,1780441832000,-300.0,0.00013226,2]
[423830496,1780441832000,-300.0,0.00013226,2]
[423830482,1780441832000,-300.0,0.00013226,2]
[423830478,1780441832000,-300.0,0.00012966,2]
[423830537,1780441832000,-1434.951248,0.00013846,2]
[423830518,1780441832000,-500.0,0.00013698,2]
[423830543,1780441832000,-500.0,0.00013865,2]
[423830566,1780441832000,-500.0,0.00013963,2]
[423830565,1780441832000,-500.0,0.00013963,2]
[423830558,1780441832000,-500.0,0.00013963,2]
[423830560,1780441832000,-431.1988376,0.00013963,2]
[423830561,1780441832000,-500.0,0.00013963,2]
[423830568,1780441832000,-500.0,0.00013963,2]
[423830567,1780441832000,-500.0,0.00013963,2]
[423830563,1780441832000,-516.03789573,0.00013963,2]
[423830559,1780441832000,-500.0,0.00013963,2]
[423830569,1780441832000,-500.0,0.00013963,2]
[423830575,1780441832000,-500.0,0.00013963,2]
[423830570,1780441832000,-500.0,0.00013963,2]
[423830571,1780441832000,-500.0,0.00013963,2]
[423830573,1780441832000,-472.71128341,0.00013963,2]
[423830572,1780441832000,-500.0,0.00013963,2]
[423830542,1780441832000,-500.0,0.00013865,2]
[423830564,1780441832000,-500.0,0.00013963,2]
[423830562,1780441832000,-500.0,0.00013963,2]
[423830574,1780441832000,-500.0,0.00013963,2]
[423830547,1780441832000,-500.0,0.00013865,2]
[423830557,1780441832000,-648.33074112,0.00013963,2]
[423830541,1780441832000,-500.0,0.00013865,2]
[423830533,1780441832000,-611.32,0.00013698,2]
[423830538,1780441832000,-784.16420879,0.00013862,2]
[423830536,1780441832000,-1000.0,0.00013699,2]
[423830534,1780441832000,-500.0,0.00013698,2]
[423830546,1780441832000,-500.0,0.00013865,2]
[423830552,1780441832000,-500.0,0.00013904,2]
[423830544,1780441832000,-500.0,0.00013865,2]
[423830553,1780441832000,-500.0,0.00013904,2]
[423830554,1780441832000,-1680.0,0.00013905,2]
[423830555,1780441832000,-500.0,0.00013963,2]
[423830549,1780441832000,-10742.33,0.00013865,2]
[423830556,1780441832000,-500.0,0.00013963,2]
[423830548,1780441832000,-500.0,0.00013865,2]
[423830545,1780441832000,-500.0,0.00013865,2]
[423830551,1780441832000,-537.31,0.00013904,2]
[423830550,1780441832000,-2025.41,0.00013865,2]
[423830588,1780441833000,-500.0,0.00013963,2]
[423830592,1780441833000,-500.0,0.00013964,2]
[423830590,1780441833000,-500.0,0.00013964,2]
[423830595,1780441833000,-500.0,0.00013964,2]
[423830589,1780441833000,-500.0,0.00013964,2]
[423830603,1780441833000,-364.68529578,0.00013964,2]
[423830593,1780441833000,-500.0,0.00013964,2]
[423830591,1780441833000,-921.66,0.00013964,2]
[423830584,1780441833000,-500.0,0.00013963,2]
[423830580,1780441833000,-500.0,0.00013963,2]
[423830587,1780441833000,-500.0,0.00013963,2]
[423830585,1780441833000,-500.0,0.00013963,2]
[423830582,1780441833000,-500.0,0.00013963,2]
[423830581,1780441833000,-500.0,0.00013963,2]
[423830579,1780441833000,-500.0,0.00013963,2]
[423830577,1780441833000,-500.0,0.00013963,2]
[423830597,1780441833000,-500.0,0.00013964,2]
[423830578,1780441833000,-500.0,0.00013963,2]
[423830576,1780441833000,-500.0,0.00013963,2]
[423830586,1780441833000,-500.0,0.00013963,2]
[423830604,1780441833000,-500.0,0.00013964,2]
[423830583,1780441833000,-500.0,0.00013963,2]
[423830605,1780441833000,-301.11676098,0.00013965,2]
[423830596,1780441833000,-500.0,0.00013964,2]
[423830621,1780441833000,-274.24289103,0.00013965,2]
[423830614,1780441833000,-10176.00713976,0.00013965,2]
[423830616,1780441833000,-10176.00713976,0.00013965,2]
[423830618,1780441833000,-10176.00713976,0.00013965,2]
[423830615,1780441833000,-10176.00713976,0.00013965,2]
[423830617,1780441833000,-10176.00713976,0.00013965,2]
[423830613,1780441833000,-10176.00713976,0.00013965,2]
[423830612,1780441833000,-10176.00713976,0.00013965,2]
[423830611,1780441833000,-10176.00713976,0.00013965,2]
[423830620,1780441833000,-800.23493036,0.00013965,2]
[423830594,1780441833000,-500.0,0.00013964,2]
[423830608,1780441833000,-10176.00713976,0.00013965,2]
[423830610,1780441833000,-10176.00713976,0.00013965,2]
[423830609,1780441833000,-10176.00713976,0.00013965,2]
[423830599,1780441833000,-838.92,0.00013964,2]
[423830598,1780441833000,-500.0,0.00013964,2]
[423830606,1780441833000,-500.0,0.00013965,2]
[423830601,1780441833000,-500.0,0.00013964,2]
[423830607,1780441833000,-10176.00713976,0.00013965,2]
[423830600,1780441833000,-604.1,0.00013964,2]
[423830602,1780441833000,-548.33576438,0.00013964,2]
[423830619,1780441833000,-4213.42390667,0.00013965,2]
[423830850,1780441841000,-500.0,0.00013966,2]
[423830852,1780441841000,-500.0,0.00013966,2]
[423830854,1780441841000,-500.0,0.00013966,2]
[423830865,1780441841000,-500.0,0.00013966,2]
[423830862,1780441841000,-500.0,0.00013966,2]
[423830858,1780441841000,-500.0,0.00013966,2]
[423830859,1780441841000,-500.0,0.00013966,2]
[423830856,1780441841000,-500.0,0.00013966,2]
[423830846,1780441841000,-350.34889778,0.00013966,2]
[423830831,1780441841000,-500.0,0.00013966,2]
[423830844,1780441841000,-500.0,0.00013966,2]
[423830842,1780441841000,-500.0,0.00013966,2]
[423830832,1780441841000,-500.0,0.00013966,2]
[423830868,1780441841000,-500.0,0.00013966,2]
[423830829,1780441841000,-500.0,0.00013966,2]
[423830839,1780441841000,-500.0,0.00013966,2]
[423830827,1780441841000,-500.0,0.00013966,2]
[423830834,1780441841000,-500.0,0.00013966,2]
[423830836,1780441841000,-500.0,0.00013966,2]
[423830816,1780441841000,-500.12252924,0.00013966,2]
[423830820,1780441841000,-500.0,0.00013966,2]
[423830848,1780441841000,-500.0,0.00013966,2]
[423830863,1780441841000,-500.0,0.00013966,2]
[423830875,1780441841000,-500.0,0.00013966,2]
[423830873,1780441841000,-500.0,0.00013966,2]
[423830822,1780441841000,-539.33979203,0.00013966,2]
[423830909,1780441841000,-500.88562307,0.00013966,2]
[423830907,1780441841000,-500.0,0.00013966,2]
[423830893,1780441841000,-500.0,0.00013966,2]
[423830906,1780441841000,-500.0,0.00013966,2]
[423830904,1780441841000,-500.0,0.00013966,2]
[423830902,1780441841000,-500.0,0.00013966,2]
[423830900,1780441841000,-500.0,0.00013966,2]
[423830898,1780441841000,-500.0,0.00013966,2]
[423830896,1780441841000,-500.0,0.00013966,2]